[Event "Titled Tuesday Blitz August 15 Late 2023"]
[White "Dubov, Daniil"]
[Black "Hakobyan, Aram"]
[WhiteFideId "24126055"]
[BlackFideId "13306677"]
[WhiteElo "3046"]
[BlackElo "2990"]
[Result "0-1"]
[Round "9"]
[TimeControl "180+1"]
[Date "2023.08.15"]
[WhiteClock "0:00:00"]
[BlackClock "0:00:23"]
[Board "2"]

1. d4 {[%clk 0:03:00]}  Nf6 {[%clk 0:03:00]} 2. Nf3 {[%clk 0:03:01]}  d5 {[%clk 0:02:59]} 3. Bg5 {[%clk 0:03:01]}  Ne4 {[%clk 0:02:58]} 4. Bh4 {[%clk 0:03:01]}  c5 {[%clk 0:02:56]} 5. e3 {[%clk 0:03:01]}  Qb6 {[%clk 0:02:38]} 6. Nc3 {[%clk 0:03:01]}  Nxc3 {[%clk 0:02:31]} 7. bxc3 {[%clk 0:03:00]}  Qa5 {[%clk 0:02:31]} 8. Qd2 {[%clk 0:02:58]}  c4 {[%clk 0:02:31]} 9. e4 {[%clk 0:02:54]}  e6 {[%clk 0:02:17]} 10. exd5 {[%clk 0:02:44]}  Qxd5 {[%clk 0:02:18]} 11. Qe2 {[%clk 0:02:16]}  b5 {[%clk 0:02:06]} 12. a4 {[%clk 0:02:16]}  a6 {[%clk 0:02:07]} 13. g4 {[%clk 0:02:12]}  Bb7 {[%clk 0:01:57]} 14. Bg2 {[%clk 0:02:12]}  Qe4 {[%clk 0:01:57]} 15. Qxe4 {[%clk 0:01:40]}  Bxe4 {[%clk 0:01:57]} 16. O-O {[%clk 0:01:41]}  Be7 {[%clk 0:01:49]} 17. Bxe7 {[%clk 0:00:48]}  Kxe7 {[%clk 0:01:49]} 18. axb5 {[%clk 0:00:44]}  axb5 {[%clk 0:01:49]} 19. Ne5 {[%clk 0:00:41]}  Bxg2 {[%clk 0:01:45]} 20. Kxg2 {[%clk 0:00:41]}  Nd7 {[%clk 0:01:37]} 21. Nc6+ {[%clk 0:00:40]}  Kd6 {[%clk 0:01:37]} 22. Na7 {[%clk 0:00:40]}  Rhb8 {[%clk 0:01:25]} 23. Ra6+ {[%clk 0:00:34]}  Kc7 {[%clk 0:01:08]} 24. Nxb5+ {[%clk 0:00:31]}  Kd8 {[%clk 0:01:09]} 25. Rxa8 {[%clk 0:00:30]}  Rxa8 {[%clk 0:01:10]} 26. Nd6 {[%clk 0:00:31]}  Ke7 {[%clk 0:01:05]} 27. Nxc4 {[%clk 0:00:31]}  Rc8 {[%clk 0:01:06]} 28. Ne3 {[%clk 0:00:31]}  Rxc3 {[%clk 0:01:07]} 29. Ra1 {[%clk 0:00:31]}  Nf6 {[%clk 0:00:56]} 30. Ra7+ {[%clk 0:00:24]}  Ke8 {[%clk 0:00:56]} 31. Ra8+ {[%clk 0:00:24]}  Ke7 {[%clk 0:00:53]} 32. Ra7+ {[%clk 0:00:24]}  Ke8 {[%clk 0:00:54]} 33. Kf3 {[%clk 0:00:20]}  Nd5 {[%clk 0:00:52]} 34. Ra2 {[%clk 0:00:18]}  Ke7 {[%clk 0:00:49]} 35. Ke2 {[%clk 0:00:18]}  Rxe3+ {[%clk 0:00:46]} 36. fxe3 {[%clk 0:00:15]}  Nc3+ {[%clk 0:00:46]} 37. Kd2 {[%clk 0:00:04]}  Nxa2 {[%clk 0:00:47]} 38. c3 {[%clk 0:00:05]}  Kd6 {[%clk 0:00:44]} 39. Kc2 {[%clk 0:00:04]}  Kd5 {[%clk 0:00:41]} 40. Kb2 {[%clk 0:00:04]}  Kc4 {[%clk 0:00:42]} 41. Kxa2 {[%clk 0:00:04]}  Kxc3 {[%clk 0:00:42]} 42. Ka3 {[%clk 0:00:04]}  Kd3 {[%clk 0:00:43]} 43. Kb4 {[%clk 0:00:05]}  Kxe3 {[%clk 0:00:43]} 44. Kc5 {[%clk 0:00:06]}  Ke4 {[%clk 0:00:35]} 45. h4 {[%clk 0:00:03]}  h6 {[%clk 0:00:32]} 46. h5 {[%clk 0:00:02]}  Ke3 {[%clk 0:00:23]} 47. d5 {[%clk 0:00:01]}  exd5 {[%clk 0:00:23]} 48. Kxd5 {[%clk 0:00:00]}  Kf4 {[%clk 0:00:23]} 0-1


[Site "https://www.chess.com"]

[Event "Titled Tuesday Blitz August 15 Late 2023"]
[White "Drygalov, Sergey"]
[Black "Vachier-Lagrave, Maxime"]
[WhiteFideId "24171743"]
[BlackFideId "623539"]
[WhiteElo "2971"]
[BlackElo "3120"]
[Result "0-1"]
[Round "9"]
[TimeControl "180+1"]
[Date "2023.08.15"]
[WhiteClock "0:00:01"]
[BlackClock "0:00:29"]
[Board "4"]

1. e4 {[%clk 0:02:59]}  c5 {[%clk 0:02:58]} 2. Nf3 {[%clk 0:03:00]}  d6 {[%clk 0:02:57]} 3. d4 {[%clk 0:03:00]}  cxd4 {[%clk 0:02:58]} 4. Nxd4 {[%clk 0:03:00]}  Nf6 {[%clk 0:02:59]} 5. Nc3 {[%clk 0:03:01]}  a6 {[%clk 0:02:59]} 6. Be2 {[%clk 0:03:01]}  e5 {[%clk 0:02:58]} 7. Nf3 {[%clk 0:03:00]}  Be7 {[%clk 0:02:57]} 8. Bg5 {[%clk 0:02:57]}  Nbd7 {[%clk 0:02:53]} 9. a4 {[%clk 0:02:54]}  h6 {[%clk 0:02:52]} 10. Be3 {[%clk 0:02:50]}  Ng4 {[%clk 0:02:46]} 11. Bc1 {[%clk 0:02:49]}  Ngf6 {[%clk 0:02:46]} 12. Be3 {[%clk 0:02:49]}  Qc7 {[%clk 0:02:36]} 13. Nd2 {[%clk 0:02:42]}  Nc5 {[%clk 0:02:30]} 14. a5 {[%clk 0:02:35]}  Be6 {[%clk 0:02:29]} 15. Bf3 {[%clk 0:02:25]}  Qc6 {[%clk 0:02:14]} 16. O-O {[%clk 0:02:06]}  Rc8 {[%clk 0:02:09]} 17. Re1 {[%clk 0:01:55]}  O-O {[%clk 0:02:09]} 18. Nf1 {[%clk 0:01:45]}  Ncxe4 {[%clk 0:01:58]} 19. Nxe4 {[%clk 0:01:20]}  Nxe4 {[%clk 0:01:59]} 20. Bxh6 {[%clk 0:01:21]}  f5 {[%clk 0:01:29]} 21. Bc1 {[%clk 0:00:29]}  Qxc2 {[%clk 0:01:26]} 22. Qxc2 {[%clk 0:00:27]}  Rxc2 {[%clk 0:01:27]} 23. Ne3 {[%clk 0:00:28]}  Rxf2 {[%clk 0:01:21]} 24. Nxf5 {[%clk 0:00:07]}  Bxf5 {[%clk 0:01:21]} 25. Rxe4 {[%clk 0:00:07]}  Bxe4 {[%clk 0:01:02]} 26. Kxf2 {[%clk 0:00:07]}  Bc6 {[%clk 0:01:03]} 27. Kg3 {[%clk 0:00:05]}  d5 {[%clk 0:00:59]} 28. Bg4 {[%clk 0:00:05]}  Bd6 {[%clk 0:00:54]} 29. h4 {[%clk 0:00:05]}  e4+ {[%clk 0:00:53]} 30. Kh3 {[%clk 0:00:05]}  Rf1 {[%clk 0:00:51]} 31. Be6+ {[%clk 0:00:06]}  Kh7 {[%clk 0:00:43]} 32. Kg4 {[%clk 0:00:03]}  d4 {[%clk 0:00:33]} 33. Bf5+ {[%clk 0:00:03]}  g6 {[%clk 0:00:32]} 34. Be6 {[%clk 0:00:03]}  e3 {[%clk 0:00:32]} 35. Bc4 {[%clk 0:00:01]}  Bd7+ {[%clk 0:00:29]} 0-1


[Site "https://www.chess.com"]

[Event "Titled Tuesday Blitz August 15 Late 2023"]
[White "Kazakouski, Valery"]
[Black "Bortnyk, Olexandr"]
[WhiteFideId "13507443"]
[BlackFideId "14120828"]
[WhiteElo "2943"]
[BlackElo "3085"]
[Result "0-1"]
[Round "9"]
[TimeControl "180+1"]
[Date "2023.08.15"]
[WhiteClock "0:00:23"]
[BlackClock "0:01:56"]
[Board "5"]

1. Nf3 {[%clk 0:03:00]}  Nf6 {[%clk 0:02:58]} 2. c4 {[%clk 0:02:59]}  b6 {[%clk 0:02:58]} 3. g3 {[%clk 0:02:59]}  Bb7 {[%clk 0:02:59]} 4. Bg2 {[%clk 0:03:00]}  g6 {[%clk 0:02:59]} 5. O-O {[%clk 0:02:59]}  Bg7 {[%clk 0:03:00]} 6. d4 {[%clk 0:03:00]}  O-O {[%clk 0:03:00]} 7. d5 {[%clk 0:02:56]}  Na6 {[%clk 0:02:58]} 8. Nd4 {[%clk 0:02:56]}  Nc5 {[%clk 0:02:51]} 9. b4 {[%clk 0:02:48]}  Nce4 {[%clk 0:02:47]} 10. Bb2 {[%clk 0:02:48]}  c5 {[%clk 0:02:43]} 11. dxc6 {[%clk 0:02:45]}  dxc6 {[%clk 0:02:44]} 12. Nb3 {[%clk 0:02:37]}  Qxd1 {[%clk 0:02:34]} 13. Rxd1 {[%clk 0:02:37]}  Nxf2 {[%clk 0:02:34]} 14. Rf1 {[%clk 0:01:20]}  N2g4 {[%clk 0:02:34]} 15. b5 {[%clk 0:01:14]}  Rac8 {[%clk 0:02:28]} 16. Bf3 {[%clk 0:01:07]}  Ne3 {[%clk 0:02:27]} 17. Rc1 {[%clk 0:01:07]}  Ba8 {[%clk 0:02:19]} 18. N1d2 {[%clk 0:01:03]}  Rfd8 {[%clk 0:02:07]} 19. a4 {[%clk 0:00:53]}  c5 {[%clk 0:02:05]} 20. a5 {[%clk 0:00:37]}  Bxf3 {[%clk 0:02:05]} 21. exf3 {[%clk 0:00:37]}  Rd3 {[%clk 0:02:01]} 22. axb6 {[%clk 0:00:35]}  axb6 {[%clk 0:02:02]} 23. Ra6 {[%clk 0:00:35]}  Rcd8 {[%clk 0:01:56]} 24. Rxb6 {[%clk 0:00:23]}  Nd7 {[%clk 0:01:56]} 0-1


[Site "https://www.chess.com"]

[Event "Titled Tuesday Blitz August 15 Late 2023"]
[White "Sadhwani, Raunak"]
[Black "Keymer, Vincent"]
[WhiteFideId "35093487"]
[BlackFideId "12940690"]
[WhiteElo "3025"]
[BlackElo "2953"]
[Result "1/2-1/2"]
[Round "9"]
[TimeControl "180+1"]
[Date "2023.08.15"]
[WhiteClock "0:00:10"]
[BlackClock "0:00:08"]
[Board "6"]

1. e4 {[%clk 0:02:59]}  c6 {[%clk 0:03:00]} 2. d3 {[%clk 0:02:57]}  d5 {[%clk 0:03:01]} 3. Nd2 {[%clk 0:02:58]}  e5 {[%clk 0:03:01]} 4. Ngf3 {[%clk 0:02:59]}  Bd6 {[%clk 0:03:02]} 5. g3 {[%clk 0:02:59]}  Nf6 {[%clk 0:03:02]} 6. Bg2 {[%clk 0:03:00]}  O-O {[%clk 0:03:03]} 7. O-O {[%clk 0:03:00]}  Re8 {[%clk 0:03:03]} 8. Re1 {[%clk 0:03:00]}  Nbd7 {[%clk 0:03:04]} 9. h3 {[%clk 0:03:00]}  h6 {[%clk 0:03:04]} 10. Nh4 {[%clk 0:03:00]}  Nf8 {[%clk 0:03:04]} 11. Nf1 {[%clk 0:03:00]}  a5 {[%clk 0:03:03]} 12. a3 {[%clk 0:03:00]}  Be6 {[%clk 0:02:58]} 13. Qf3 {[%clk 0:03:00]}  dxe4 {[%clk 0:02:48]} 14. dxe4 {[%clk 0:03:01]}  Ng6 {[%clk 0:02:49]} 15. Nf5 {[%clk 0:02:59]}  Bc5 {[%clk 0:02:43]} 16. Be3 {[%clk 0:02:57]}  Bxe3 {[%clk 0:02:30]} 17. N1xe3 {[%clk 0:02:58]}  Kh7 {[%clk 0:02:30]} 18. h4 {[%clk 0:02:42]}  Ne7 {[%clk 0:02:23]} 19. Rad1 {[%clk 0:02:28]}  Qc7 {[%clk 0:02:21]} 20. Bh3 {[%clk 0:02:17]}  Rad8 {[%clk 0:02:07]} 21. Kh2 {[%clk 0:02:17]}  Nxf5 {[%clk 0:01:54]} 22. Bxf5+ {[%clk 0:02:15]}  Bxf5 {[%clk 0:01:54]} 23. Qxf5+ {[%clk 0:02:16]}  Kg8 {[%clk 0:01:54]} 24. a4 {[%clk 0:02:13]}  Qb6 {[%clk 0:01:41]} 25. b3 {[%clk 0:02:08]}  Qc5 {[%clk 0:01:40]} 26. Kg2 {[%clk 0:01:56]}  Qc3 {[%clk 0:01:34]} 27. Qf3 {[%clk 0:01:16]}  h5 {[%clk 0:01:13]} 28. Rxd8 {[%clk 0:01:04]}  Rxd8 {[%clk 0:01:13]} 29. Rd1 {[%clk 0:01:05]}  Rd4 {[%clk 0:01:11]} 30. Rxd4 {[%clk 0:00:45]}  exd4 {[%clk 0:00:38]} 31. Nf5 {[%clk 0:00:36]}  Qxc2 {[%clk 0:00:37]} 32. e5 {[%clk 0:00:37]}  Ng4 {[%clk 0:00:32]} 33. Nxd4 {[%clk 0:00:30]}  Qb2 {[%clk 0:00:20]} 34. e6 {[%clk 0:00:29]}  Qxd4 {[%clk 0:00:18]} 35. Qxf7+ {[%clk 0:00:29]}  Kh7 {[%clk 0:00:18]} 36. Qxh5+ {[%clk 0:00:20]}  Nh6 {[%clk 0:00:18]} 37. Qe2 {[%clk 0:00:15]}  Qd8 {[%clk 0:00:18]} 38. Qe5 {[%clk 0:00:12]}  Kg8 {[%clk 0:00:04]} 39. g4 {[%clk 0:00:07]}  Qd5+ {[%clk 0:00:03]} 40. Qxd5 {[%clk 0:00:05]}  cxd5 {[%clk 0:00:04]} 41. Kg3 {[%clk 0:00:04]}  Kf8 {[%clk 0:00:04]} 42. Kf4 {[%clk 0:00:05]}  Ke7 {[%clk 0:00:04]} 43. g5 {[%clk 0:00:05]}  Ng8 {[%clk 0:00:01]} 44. Ke5 {[%clk 0:00:05]}  d4 {[%clk 0:00:02]} 45. Kxd4 {[%clk 0:00:06]}  Kxe6 {[%clk 0:00:03]} 46. Kc5 {[%clk 0:00:07]}  Kf5 {[%clk 0:00:01]} 47. Kb6 {[%clk 0:00:06]}  Ne7 {[%clk 0:00:01]} 48. Kxb7 {[%clk 0:00:04]}  Kg4 {[%clk 0:00:02]} 49. Kb6 {[%clk 0:00:04]}  Kxh4 {[%clk 0:00:02]} 50. Kxa5 {[%clk 0:00:05]}  Kxg5 {[%clk 0:00:03]} 51. Kb5 {[%clk 0:00:05]}  Kf4 {[%clk 0:00:02]} 52. a5 {[%clk 0:00:06]}  Kf3 {[%clk 0:00:02]} 53. a6 {[%clk 0:00:07]}  Nc8 {[%clk 0:00:02]} 54. Kc6 {[%clk 0:00:07]}  Kxf2 {[%clk 0:00:03]} 55. Kc7 {[%clk 0:00:07]}  Na7 {[%clk 0:00:03]} 56. Kb7 {[%clk 0:00:08]}  Nb5 {[%clk 0:00:04]} 57. Kb6 {[%clk 0:00:07]}  Nd6 {[%clk 0:00:04]} 58. b4 {[%clk 0:00:08]}  g5 {[%clk 0:00:04]} 59. Kc6 {[%clk 0:00:08]}  Nc8 {[%clk 0:00:04]} 60. Kc7 {[%clk 0:00:09]}  Na7 {[%clk 0:00:04]} 61. Kb7 {[%clk 0:00:08]}  Nb5 {[%clk 0:00:04]} 62. Kb6 {[%clk 0:00:09]}  Nd6 {[%clk 0:00:05]} 63. b5 {[%clk 0:00:09]}  g4 {[%clk 0:00:05]} 64. Kc6 {[%clk 0:00:09]}  Nxb5 {[%clk 0:00:04]} 65. Kxb5 {[%clk 0:00:08]}  g3 {[%clk 0:00:05]} 66. a7 {[%clk 0:00:08]}  g2 {[%clk 0:00:06]} 67. a8=Q {[%clk 0:00:09]}  g1=Q {[%clk 0:00:07]} 68. Qa7+ {[%clk 0:00:09]}  Kg2 {[%clk 0:00:07]} 69. Qxg1+ {[%clk 0:00:10]}  Kxg1 {[%clk 0:00:08]} 1/2-1/2


[Site "https://www.chess.com"]

[Event "Titled Tuesday Blitz August 15 Late 2023"]
[White "Deac, Bogdan-Daniel"]
[Black "Xiong, Jeffery"]
[WhiteFideId "1226380"]
[BlackFideId "2047640"]
[WhiteElo "2999"]
[BlackElo "2989"]
[Result "1-0"]
[Round "9"]
[TimeControl "180+1"]
[Date "2023.08.15"]
[WhiteClock "0:00:05"]
[BlackClock "0:00:02"]
[Board "7"]

1. e4 {[%clk 0:03:00]}  e6 {[%clk 0:02:56]} 2. Qe2 {[%clk 0:03:00]}  c5 {[%clk 0:02:49]} 3. Nf3 {[%clk 0:03:00]}  Nc6 {[%clk 0:02:49]} 4. c3 {[%clk 0:03:00]}  e5 {[%clk 0:02:28]} 5. Qe3 {[%clk 0:03:00]}  Nf6 {[%clk 0:02:24]} 6. Bc4 {[%clk 0:02:53]}  Be7 {[%clk 0:02:09]} 7. d3 {[%clk 0:02:48]}  O-O {[%clk 0:02:08]} 8. O-O {[%clk 0:02:47]}  a6 {[%clk 0:01:55]} 9. a4 {[%clk 0:02:41]}  d6 {[%clk 0:01:53]} 10. Qe2 {[%clk 0:02:38]}  h6 {[%clk 0:01:46]} 11. Na3 {[%clk 0:02:25]}  Na5 {[%clk 0:01:40]} 12. Ba2 {[%clk 0:02:24]}  Bd7 {[%clk 0:01:39]} 13. b4 {[%clk 0:02:11]}  cxb4 {[%clk 0:01:40]} 14. cxb4 {[%clk 0:02:11]}  Nc6 {[%clk 0:01:41]} 15. Bd2 {[%clk 0:02:12]}  Bg4 {[%clk 0:01:41]} 16. Nc2 {[%clk 0:02:08]}  Qd7 {[%clk 0:01:37]} 17. Bc4 {[%clk 0:01:46]}  Nd8 {[%clk 0:00:56]} 18. Ne3 {[%clk 0:01:27]}  Bh5 {[%clk 0:00:51]} 19. Nf5 {[%clk 0:00:52]}  Ne6 {[%clk 0:00:50]} 20. Be3 {[%clk 0:00:52]}  Rfe8 {[%clk 0:00:42]} 21. Ng3 {[%clk 0:00:47]}  Bxf3 {[%clk 0:00:38]} 22. Qxf3 {[%clk 0:00:46]}  Nc7 {[%clk 0:00:31]} 23. Nf5 {[%clk 0:00:33]}  d5 {[%clk 0:00:31]} 24. Bb3 {[%clk 0:00:23]}  dxe4 {[%clk 0:00:18]} 25. dxe4 {[%clk 0:00:18]}  Qd3 {[%clk 0:00:19]} 26. Qg3 {[%clk 0:00:12]}  Nh5 {[%clk 0:00:08]} 27. Nxh6+ {[%clk 0:00:08]}  Kf8 {[%clk 0:00:09]} 28. Qf3 {[%clk 0:00:03]}  Qxb3 {[%clk 0:00:08]} 29. Qxh5 {[%clk 0:00:03]}  Qe6 {[%clk 0:00:05]} 30. Nf5 {[%clk 0:00:03]}  Kg8 {[%clk 0:00:06]} 31. Qg4 {[%clk 0:00:03]}  Bf8 {[%clk 0:00:06]} 32. Rfc1 {[%clk 0:00:03]}  Rac8 {[%clk 0:00:05]} 33. b5 {[%clk 0:00:03]}  axb5 {[%clk 0:00:05]} 34. axb5 {[%clk 0:00:04]}  Nxb5 {[%clk 0:00:06]} 35. Rxc8 {[%clk 0:00:03]}  Rxc8 {[%clk 0:00:04]} 36. Nh6+ {[%clk 0:00:03]}  Kh7 {[%clk 0:00:04]} 37. Qxe6 {[%clk 0:00:04]}  fxe6 {[%clk 0:00:05]} 38. Nf7 {[%clk 0:00:04]}  Bd6 {[%clk 0:00:03]} 39. Ng5+ {[%clk 0:00:04]}  Kg6 {[%clk 0:00:03]} 40. Nxe6 {[%clk 0:00:04]}  Be7 {[%clk 0:00:01]} 41. h4 {[%clk 0:00:04]}  Rc6 {[%clk 0:00:01]} 42. Ng5 {[%clk 0:00:03]}  Bxg5 {[%clk 0:00:01]} 43. Bxg5 {[%clk 0:00:03]}  Nc3 {[%clk 0:00:02]} 44. f3 {[%clk 0:00:04]}  b5 {[%clk 0:00:03]} 45. Ra7 {[%clk 0:00:04]}  b4 {[%clk 0:00:03]} 46. Rb7 {[%clk 0:00:04]}  Na2 {[%clk 0:00:02]} 47. Be7 {[%clk 0:00:04]}  Rc4 {[%clk 0:00:02]} 48. Bf8 {[%clk 0:00:04]}  Kh5 {[%clk 0:00:01]} 49. g3 {[%clk 0:00:04]}  g5 {[%clk 0:00:01]} 50. hxg5 {[%clk 0:00:03]}  Kxg5 {[%clk 0:00:02]} 51. Kg2 {[%clk 0:00:04]}  Rc2+ {[%clk 0:00:02]} 52. Kh3 {[%clk 0:00:04]}  Rc3 {[%clk 0:00:03]} 53. Be7+ {[%clk 0:00:03]}  Kg6 {[%clk 0:00:03]} 54. Kg4 {[%clk 0:00:04]}  Rc4 {[%clk 0:00:02]} 55. Rb6+ {[%clk 0:00:03]}  Kf7 {[%clk 0:00:02]} 56. Bd6 {[%clk 0:00:04]}  Nc1 {[%clk 0:00:02]} 57. Rxb4 {[%clk 0:00:03]}  Rc6 {[%clk 0:00:01]} 58. Bxe5 {[%clk 0:00:03]}  Nd3 {[%clk 0:00:02]} 59. Rb7+ {[%clk 0:00:04]}  Ke6 {[%clk 0:00:02]} 60. Bf4 {[%clk 0:00:04]}  Nf2+ {[%clk 0:00:02]} 61. Kh4 {[%clk 0:00:04]}  Nd3 {[%clk 0:00:03]} 62. Rh7 {[%clk 0:00:03]}  Rc2 {[%clk 0:00:02]} 63. Rh6+ {[%clk 0:00:03]}  Kf7 {[%clk 0:00:03]} 64. Kg4 {[%clk 0:00:03]}  Rc5 {[%clk 0:00:02]} 65. Kh3 {[%clk 0:00:02]}  Nf2+ {[%clk 0:00:01]} 66. Kh4 {[%clk 0:00:02]}  Nd3 {[%clk 0:00:02]} 67. Ra6 {[%clk 0:00:01]}  Ne1 {[%clk 0:00:02]} 68. Ra7+ {[%clk 0:00:02]}  Ke6 {[%clk 0:00:03]} 69. Kg4 {[%clk 0:00:02]}  Rc8 {[%clk 0:00:03]} 70. Ra6+ {[%clk 0:00:03]}  Kf7 {[%clk 0:00:03]} 71. Ra5 {[%clk 0:00:03]}  Rg8+ {[%clk 0:00:04]} 72. Rg5 {[%clk 0:00:03]}  Rc8 {[%clk 0:00:04]} 73. Rf5+ {[%clk 0:00:04]}  Ke6 {[%clk 0:00:05]} 74. Re5+ {[%clk 0:00:04]}  Kf6 {[%clk 0:00:05]} 75. Rd5 {[%clk 0:00:04]}  Rg8+ {[%clk 0:00:05]} 76. Bg5+ {[%clk 0:00:05]}  Ke6 {[%clk 0:00:06]} 77. f4 {[%clk 0:00:05]}  Ng2 {[%clk 0:00:05]} 78. Rd3 {[%clk 0:00:05]}  Ne1 {[%clk 0:00:04]} 79. Rd5 {[%clk 0:00:05]}  Nc2 {[%clk 0:00:04]} 80. f5+ {[%clk 0:00:05]}  Kf7 {[%clk 0:00:02]} 81. Rd7+ {[%clk 0:00:05]} 1-0


[Site "https://www.chess.com"]

[Event "Titled Tuesday Blitz August 15 Late 2023"]
[White "Rasulov, Vugar"]
[Black "Naroditsky, Daniel"]
[WhiteFideId "13402390"]
[BlackFideId "2026961"]
[WhiteElo "2894"]
[BlackElo "3149"]
[Result "1-0"]
[Round "9"]
[TimeControl "180+1"]
[Date "2023.08.15"]
[WhiteClock "0:00:14"]
[BlackClock "0:00:00"]
[Board "9"]

1. c4 {[%clk 0:02:55]}  g6 {[%clk 0:02:58]} 2. Nc3 {[%clk 0:02:55]}  Bg7 {[%clk 0:02:59]} 3. g3 {[%clk 0:02:56]}  d6 {[%clk 0:02:59]} 4. Bg2 {[%clk 0:02:56]}  Nf6 {[%clk 0:03:00]} 5. e3 {[%clk 0:02:54]}  O-O {[%clk 0:03:00]} 6. Nge2 {[%clk 0:02:55]}  c5 {[%clk 0:03:00]} 7. O-O {[%clk 0:02:55]}  Nc6 {[%clk 0:03:00]} 8. d4 {[%clk 0:02:55]}  a6 {[%clk 0:02:58]} 9. b3 {[%clk 0:02:54]}  Rb8 {[%clk 0:02:56]} 10. Bb2 {[%clk 0:02:51]}  Bd7 {[%clk 0:02:55]} 11. Rc1 {[%clk 0:02:50]}  b5 {[%clk 0:02:46]} 12. cxb5 {[%clk 0:02:46]}  axb5 {[%clk 0:02:46]} 13. dxc5 {[%clk 0:02:46]}  dxc5 {[%clk 0:02:47]} 14. Nf4 {[%clk 0:02:39]}  c4 {[%clk 0:02:23]} 15. bxc4 {[%clk 0:02:32]}  bxc4 {[%clk 0:02:24]} 16. Ba1 {[%clk 0:02:32]}  Ne5 {[%clk 0:02:12]} 17. Ne4 {[%clk 0:02:18]}  Nxe4 {[%clk 0:02:10]} 18. Bxe4 {[%clk 0:02:18]}  Bb5 {[%clk 0:01:57]} 19. Bc3 {[%clk 0:02:10]}  Nd3 {[%clk 0:01:47]} 20. Nxd3 {[%clk 0:01:58]}  cxd3 {[%clk 0:01:48]} 21. Qd2 {[%clk 0:01:57]}  Bxc3 {[%clk 0:01:23]} 22. Rxc3 {[%clk 0:01:57]}  Qa5 {[%clk 0:01:19]} 23. Bxd3 {[%clk 0:01:40]}  Rfd8 {[%clk 0:01:17]} 24. Qc2 {[%clk 0:01:32]}  Bxd3 {[%clk 0:00:38]} 25. Rxd3 {[%clk 0:01:33]}  Rxd3 {[%clk 0:00:38]} 26. Qxd3 {[%clk 0:01:33]}  Qxa2 {[%clk 0:00:39]} 27. Qe4 {[%clk 0:01:32]}  e6 {[%clk 0:00:26]} 28. h4 {[%clk 0:01:30]}  h5 {[%clk 0:00:26]} 29. Rd1 {[%clk 0:01:24]}  Qe2 {[%clk 0:00:25]} 30. Qd4 {[%clk 0:01:08]}  Rb2 {[%clk 0:00:16]} 31. Rf1 {[%clk 0:01:08]}  Rd2 {[%clk 0:00:16]} 32. Qf6 {[%clk 0:01:09]}  Rd1 {[%clk 0:00:13]} 33. Rxd1 {[%clk 0:01:08]}  Qxd1+ {[%clk 0:00:14]} 34. Kg2 {[%clk 0:01:09]}  Qd5+ {[%clk 0:00:15]} 35. Qf3 {[%clk 0:01:08]}  Qd7 {[%clk 0:00:15]} 36. e4 {[%clk 0:01:08]}  Qd4 {[%clk 0:00:13]} 37. Qf4 {[%clk 0:01:08]}  Kg7 {[%clk 0:00:11]} 38. e5 {[%clk 0:00:59]}  Qd5+ {[%clk 0:00:05]} 39. Kh2 {[%clk 0:00:58]}  Qd8 {[%clk 0:00:05]} 40. Qf3 {[%clk 0:00:53]}  Qd4 {[%clk 0:00:04]} 41. Qf6+ {[%clk 0:00:53]}  Kg8 {[%clk 0:00:05]} 42. Kg1 {[%clk 0:00:49]}  Qd1+ {[%clk 0:00:05]} 43. Kg2 {[%clk 0:00:50]}  Qd5+ {[%clk 0:00:06]} 44. Kh2 {[%clk 0:00:50]}  Qd4 {[%clk 0:00:06]} 45. Qf4 {[%clk 0:00:38]}  Qd5 {[%clk 0:00:03]} 46. Qe3 {[%clk 0:00:38]}  Qd7 {[%clk 0:00:03]} 47. Qe4 {[%clk 0:00:33]}  Qd2 {[%clk 0:00:03]} 48. Kg2 {[%clk 0:00:33]}  Qd7 {[%clk 0:00:03]} 49. Qf3 {[%clk 0:00:26]}  Kf8 {[%clk 0:00:03]} 50. Qe4 {[%clk 0:00:22]}  Ke7 {[%clk 0:00:02]} 51. Kf3 {[%clk 0:00:21]}  Kf8 {[%clk 0:00:02]} 52. Kf4 {[%clk 0:00:21]}  Kg7 {[%clk 0:00:02]} 53. Kf3 {[%clk 0:00:19]}  Qd1+ {[%clk 0:00:02]} 54. Kg2 {[%clk 0:00:20]}  Qd8 {[%clk 0:00:03]} 55. Qf4 {[%clk 0:00:20]}  Qd5+ {[%clk 0:00:04]} 56. Kh2 {[%clk 0:00:20]}  Kg8 {[%clk 0:00:04]} 57. Qe3 {[%clk 0:00:20]}  Kg7 {[%clk 0:00:04]} 58. f3 {[%clk 0:00:19]}  Qa2+ {[%clk 0:00:03]} 59. Kg1 {[%clk 0:00:20]}  Qb1+ {[%clk 0:00:04]} 60. Kf2 {[%clk 0:00:21]}  Qc2+ {[%clk 0:00:04]} 61. Qe2 {[%clk 0:00:21]}  Qc5+ {[%clk 0:00:05]} 62. Kg2 {[%clk 0:00:21]}  Qd5 {[%clk 0:00:05]} 63. Kh2 {[%clk 0:00:19]}  Kf8 {[%clk 0:00:05]} 64. g4 {[%clk 0:00:19]}  Qd4 {[%clk 0:00:04]} 65. Kg3 {[%clk 0:00:18]}  Qg1+ {[%clk 0:00:04]} 66. Kf4 {[%clk 0:00:18]}  Qc1+ {[%clk 0:00:03]} 67. Qe3 {[%clk 0:00:17]}  Qc7 {[%clk 0:00:02]} 68. gxh5 {[%clk 0:00:16]}  gxh5 {[%clk 0:00:02]} 69. Kg5 {[%clk 0:00:16]}  Qc2 {[%clk 0:00:03]} 70. Qe4 {[%clk 0:00:14]}  Qg2+ {[%clk 0:00:02]} 71. Kxh5 {[%clk 0:00:14]}  Qg3 {[%clk 0:00:02]} 72. Kh6 {[%clk 0:00:13]}  Qg7+ {[%clk 0:00:02]} 73. Kh5 {[%clk 0:00:13]}  Qg3 {[%clk 0:00:03]} 74. f4 {[%clk 0:00:11]}  Kg7 {[%clk 0:00:02]} 75. f5 {[%clk 0:00:12]}  exf5 {[%clk 0:00:01]} 76. Qxf5 {[%clk 0:00:13]}  Kf8 {[%clk 0:00:01]} 77. e6 {[%clk 0:00:12]}  Kg8 {[%clk 0:00:01]} 78. Qxf7+ {[%clk 0:00:12]}  Kh8 {[%clk 0:00:02]} 79. Qf6+ {[%clk 0:00:12]}  Kh7 {[%clk 0:00:01]} 80. Qh6+ {[%clk 0:00:13]}  Kg8 {[%clk 0:00:02]} 81. Qg6+ {[%clk 0:00:14]}  Qxg6+ {[%clk 0:00:01]} 82. Kxg6 {[%clk 0:00:15]}  Kf8 {[%clk 0:00:00]} 83. Kf6 {[%clk 0:00:14]} 1-0


[Site "https://www.chess.com"]